bitfinex-derivatives/quotes_BTCF0:USTF0_20240820
["timestamp","ask_amount","ask_price","bid_price","bid_amount"]
[1724158830941,0.3608,60658.0,60651.0,0.3608]
[1724158831142,0.065921,60652.0,60650.0,0.065922]
[1724158831341,0.00013608,60657.0,60648.0,0.0475]
[1724158831342,0.065924,60649.0,60648.0,0.0475]
[1724158831553,0.065924,60649.0,60648.0,0.05994574]
[1724158831554,0.350824,60649.0,60648.0,0.05994574]
[1724158831943,4.120824,60649.0,60648.0,0.05994574]
[1724158832144,4.120824,60649.0,60648.0,0.55458574]
[1724158832343,4.120824,60649.0,60648.0,0.05994574]
[1724158832646,3.835924,60649.0,60648.0,0.55458574]
[1724158832843,3.77,60649.0,60648.0,1.02051074]
[1724158833749,3.772,60649.0,60648.0,1.02051074]
[1724158836648,0.002,60649.0,60648.0,1.02051074]
[1724158838156,3.77024711,60655.0,60648.0,1.02051074]
[1724158838157,0.00024711,60655.0,60654.0,0.065918]
[1724158838349,0.00024711,60655.0,60654.0,0.426718]
[1724158838550,0.00024711,60655.0,60654.0,1.321318]
[1724158839048,0.3608,60670.0,60654.0,1.321318]
[1724158839049,0.01208921,60672.0,60655.0,0.4946]
[1724158839247,0.3608,60685.0,60655.0,0.4946]
[1724158839248,0.065889,60681.0,60671.0,0.3608]
[1724158839754,0.3608,60685.0,60671.0,0.065899]
[1724158839755,0.2849,60676.0,60671.0,0.065899]
[1724158839953,0.2849,60676.0,60669.0,0.17341192]
[1724158839954,0.065899,60672.0,60669.0,0.17341192]
[1724158840153,0.0497,60671.0,60667.0,0.065903]
[1724158840357,0.1156,60671.0,60667.0,0.065903]
[1724158840558,0.065903,60669.0,60665.0,0.3608]
[1724158841254,0.065903,60669.0,60664.0,0.00024711]
[1724158841255,0.065906,60665.0,60664.0,0.00024711]
[1724158842453,0.065912,60660.0,60656.0,0.065916]
[1724158842660,0.350815,60657.0,60656.0,0.065916]
[1724158843260,4.120815,60657.0,60656.0,0.065916]
[1724158843959,4.121815,60657.0,60656.0,0.066916]
[1724158844554,4.122815,60657.0,60656.0,0.001]
[1724158844761,4.122815,60657.0,60652.0,0.3608]
[1724158844762,0.065919,60653.0,60652.0,0.3608]
[1724158844962,0.065924,60650.0,60647.0,0.065926]
[1724158845365,0.065924,60650.0,60648.0,0.065925]
[1724158846455,0.065924,60649.0,60648.0,0.065925]
[1724158847772,0.066924,60649.0,60648.0,0.065925]
[1724158848880,3.836924,60649.0,60648.0,0.065925]
[1724158849288,3.837924,60649.0,60648.0,0.065925]
[1724158849489,3.837924,60649.0,60642.0,0.37349293]
[1724158849490,3.772,60649.0,60643.0,0.065929]
[1724158849688,3.772,60649.0,60642.0,0.4228243]
[1724158849689,0.2849,60645.0,60642.0,0.37349293]
[1724158849991,0.06593,60643.0,60642.0,0.37349293]
[1724158850579,0.11093,60643.0,60642.0,0.37349293]
[1724158850784,0.11093,60643.0,60642.0,0.36093429]
[1724158851382,0.11093,60643.0,60642.0,0.00013429]
[1724158851991,0.065934,60640.0,60638.0,0.065935]
[1724158852296,0.350834,60639.0,60638.0,0.065935]
[1724158852692,0.350834,60639.0,60634.0,0.065939]
[1724158852693,0.065939,60635.0,60634.0,0.065939]
[1724158852887,0.06609872,60635.0,60634.0,0.065939]
[1724158853283,0.065941,60633.0,60632.0,0.04933137]
[1724158853484,0.065941,60633.0,60632.0,0.049158]
[1724158853485,0.350841,60633.0,60632.0,0.049158]
[1724158854292,0.065942,60632.0,60631.0,0.049158]
[1724158854488,0.065943,60631.0,60627.0,0.07801707]
[1724158854791,0.065943,60631.0,60627.0,0.06571667]
[1724158854997,0.115845,60630.0,60627.0,0.06571667]
[1724158855192,0.115845,60630.0,60627.0,0.13166367]
[1724158855603,0.115845,60630.0,60629.0,0.04916869]
[1724158855896,0.065944,60630.0,60629.0,0.04916869]
[1724158856200,0.065944,60630.0,60627.0,0.065947]
[1724158856201,0.065944,60630.0,60628.0,0.04916869]
[1724158856391,0.065944,60630.0,60629.0,0.04916869]
[1724158856706,0.066944,60630.0,60629.0,0.04916869]
[1724158856890,0.065946,60628.0,60626.0,0.04916869]
[1724158857197,0.3618,60630.0,60624.0,0.065951]
[1724158857198,0.350847,60627.0,60624.0,0.065951]
[1724158857393,0.3608,60625.0,60624.0,0.065951]
[1724158858100,4.1308,60625.0,60624.0,0.065951]
[1724158858688,4.1318,60625.0,60624.0,0.065951]
[1724158858994,0.001,60625.0,60624.0,0.065951]
[1724158859191,0.3608,60630.0,60629.0,0.065945]
[1724158859790,0.36104733,60638.0,60631.0,0.131886]
[1724158859994,0.36104733,60638.0,60634.0,0.13188]
[1724158860194,0.00024733,60638.0,60634.0,0.49268]
[1724158860396,3.77015972,60635.0,60634.0,0.49268]
[1724158861596,3.77015972,60635.0,60634.0,0.55820858]
[1724158861597,3.77115972,60635.0,60634.0,0.55820858]
[1724158861999,3.77115972,60635.0,60634.0,0.49226858]
[1724158862296,3.77215972,60635.0,60634.0,0.49226858]
[1724158862890,3.77215972,60635.0,60634.0,1.38702858]
[1724158863099,0.00215972,60635.0,60634.0,1.3215]
[1724158863304,0.00215972,60635.0,60634.0,1.38703509]
[1724158863692,0.00215972,60635.0,60634.0,0.43876278]
[1724158863906,0.00215972,60635.0,60634.0,0.07796278]
[1724158864910,0.28705972,60635.0,60634.0,0.06594]
[1724158865109,0.35299872,60635.0,60634.0,0.06594]
[1724158865408,0.06594,60634.0,60633.0,0.04915017]
[1724158865700,0.06594,60634.0,60631.0,0.11509317]
[1724158865701,0.065942,60633.0,60631.0,0.11509317]
[1724158865905,0.065942,60632.0,60631.0,0.11509314]
[1724158866395,0.065942,60632.0,60631.0,0.04915014]
[1724158866695,3.77,60634.0,60627.0,0.3608]
[1724158866696,0.065943,60631.0,60630.0,0.04915014]
[1724158867611,0.065943,60631.0,60630.0,0.11509414]
[1724158868507,0.067943,60631.0,60630.0,0.11509414]
[1724158868893,0.067943,60631.0,60630.0,0.065944]
[1724158869398,0.067943,60631.0,60630.0,0.11509414]
[1724158869598,0.067943,60631.0,60630.0,0.065944]
[1724158873305,0.067943,60631.0,60630.0,0.13147909]
[1724158873609,0.067943,60631.0,60630.0,0.13164483]
[1724158874517,0.067943,60631.0,60630.0,0.065944]
[1724158875104,0.067943,60631.0,60630.0,0.13167048]
[1724158875304,0.067943,60631.0,60630.0,0.06572648]
[1724158875506,0.002,60631.0,60627.0,0.13168762]
[1724158875707,0.6457,60628.0,60627.0,0.065947]
[1724158876204,0.065949,60626.0,60625.0,0.06574062]
[1724158876999,0.131898,60626.0,60625.0,0.06574062]
[1724158877204,0.131898,60626.0,60619.0,0.3261]
[1724158877205,0.06595,60625.0,60624.0,0.06574062]
[1724158877501,0.065951,60624.0,60623.0,0.06574062]
[1724158878217,3.901902,60624.0,60623.0,0.06574062]
[1724158878413,0.065955,60620.0,60619.0,0.41995745]
[1724158878716,0.00015972,60620.0,60619.0,0.09385745]
[1724158879014,0.06611472,60620.0,60619.0,0.01194673]
[1724158879308,0.065956,60619.0,60618.0,0.14786772]
[1724158879513,0.64488,60619.0,60612.0,0.08225584]
[1724158879718,0.065969,60607.0,60606.0,0.00017484]
[1724158880012,4.120869,60607.0,60606.0,0.00017484]
[1724158880214,4.18699772,60607.0,60606.0,0.04948524]
[1724158880405,4.54779772,60607.0,60606.0,0.00017484]
[1724158881805,4.54879772,60607.0,60606.0,0.00017484]
[1724158882022,4.54979772,60607.0,60606.0,0.00017484]
[1724158882215,4.48382872,60607.0,60606.0,0.00017484]
[1724158884018,4.54979772,60607.0,60606.0,0.00017484]
[1724158884204,4.54979772,60607.0,60597.0,0.04919804]
[1724158884205,0.065979,60598.0,60597.0,0.04919804]
[1724158884407,0.065981,60596.0,60590.0,0.04919804]
[1724158884715,0.065981,60596.0,60587.0,0.04919804]
[1724158884716,0.065989,60589.0,60587.0,0.04919804]
[1724158884910,0.3608,60592.0,60586.0,0.37529804]
[1724158885109,0.4065,60592.0,60586.0,0.3261]
[1724158885312,0.065991,60587.0,60586.0,0.3261]
[1724158885513,3.835991,60587.0,60586.0,0.3261]
[1724158886103,3.835991,60587.0,60586.0,0.392092]
[1724158886104,3.77,60587.0,60586.0,0.392092]
[1724158886319,3.77,60587.0,60586.0,0.887252]
[1724158887120,3.835991,60587.0,60586.0,0.3261]
[1724158887504,3.835991,60587.0,60583.0,0.43871179]
[1724158887505,4.1308,60587.0,60583.0,0.01191679]
[1724158887705,0.065998,60581.0,60580.0,0.3608]
[1724158887904,0.065998,60581.0,60580.0,0.426799]
[1724158888114,0.2849,60584.0,60580.0,0.426799]
[1724158888115,0.0487,60583.0,60580.0,0.37304452]
[1724158888322,4.13304755,60587.0,60586.0,0.065992]
[1724158888720,4.19803855,60587.0,60586.0,0.065992]
[1724158888917,4.13304755,60587.0,60580.0,0.01224452]
[1724158889113,0.065998,60581.0,60579.0,0.065999]
[1724158889417,0.065999,60580.0,60579.0,0.065999]
[1724158889614,0.065994,60584.0,60581.0,0.065997]
[1724158890019,0.065994,60584.0,60582.0,0.065996]
[1724158890317,0.3608,60586.0,60582.0,0.065996]
[1724158890318,0.065995,60583.0,60582.0,0.065996]
[1724158890507,0.065995,60583.0,60582.0,0.038996]
[1724158891313,1.1801,60583.0,60570.0,0.04919804]
[1724158891518,0.3608,60575.0,60566.0,0.066013]
[1724158891717,0.2849,60570.0,60566.0,0.066013]
[1724158892115,3.77,60569.0,60568.0,0.066012]
[1724158892315,3.77,60569.0,60568.0,0.426812]
[1724158892526,0.00024755,60574.0,60573.0,0.066006]
[1724158893024,3.77024755,60574.0,60568.0,0.3608]
[1724158893420,0.00024755,60574.0,60568.0,0.3608]
[1724158893626,0.04619449,60582.0,60573.0,0.3608]
[1724158893928,0.00019449,60582.0,60581.0,0.065998]
[1724158894432,0.06598,60598.0,60582.0,0.065996]
[1724158894722,0.00024755,60596.0,60594.0,0.3608]
[1724158895323,0.065982,60595.0,60594.0,0.3608]
[1724158895527,0.06611227,60595.0,60594.0,0.3608]
[1724158897418,0.00413027,60595.0,60584.0,0.00024755]
[1724158897617,0.065993,60585.0,60584.0,0.00024755]
[1724158898721,0.065993,60585.0,60584.0,0.00124755]
[1724158900319,0.0453,60588.0,60584.0,0.00124755]
[1724158900527,0.0453,60588.0,60584.0,0.00024755]
[1724158900528,0.001,60585.0,60584.0,0.00024755]
[1724158900728,0.001,60585.0,60584.0,0.06624155]
[1724158901322,0.28503027,60595.0,60584.0,0.06624155]
[1724158901323,0.00013027,60595.0,60594.0,0.065983]
[1724158901724,0.06611227,60595.0,60594.0,0.065983]
[1724158901923,0.00013027,60595.0,60592.0,0.3608]
[1724158902328,0.065984,60593.0,60592.0,0.3608]
[1724158903836,0.065984,60593.0,60592.0,0.426786]
[1724158904127,0.065984,60593.0,60592.0,0.921906]
[1724158904427,0.067984,60593.0,60592.0,0.921906]
[1724158904630,0.002,60593.0,60592.0,0.921906]
[1724158905321,0.002,60593.0,60592.0,1.37110404]
[1724158905526,0.002,60593.0,60592.0,1.321906]
[1724158905732,0.00013027,60595.0,60594.0,0.065983]
[1724158907233,0.00013027,60595.0,60594.0,0.1317982]
[1724158907435,0.00013027,60595.0,60594.0,0.065983]
[1724158907633,0.00413027,60595.0,60594.0,0.065983]
[1724158907835,0.00413027,60595.0,60594.0,0.1317982]
[1724158908131,0.00413027,60595.0,60594.0,1.0268782]
[1724158908428,0.00413027,60595.0,60594.0,0.961063]
[1724158908632,3.77,60604.0,60594.0,0.90719326]
[1724158908837,0.112475,60602.0,60598.0,0.06573513]
[1724158909024,0.112475,60602.0,60601.0,0.04930087]
[1724158910727,0.112475,60602.0,60600.0,0.065977]
[1724158911333,0.065976,60601.0,60600.0,0.065977]
[1724158911731,0.065976,60601.0,60600.0,0.11527776]
[1724158913535,0.066976,60601.0,60600.0,0.12227955]
[1724158914335,0.065976,60601.0,60600.0,0.11527955]
[1724158914635,0.066976,60601.0,60600.0,0.12227955]
[1724158915332,0.066976,60601.0,60600.0,0.072977]
[1724158915538,0.066976,60601.0,60600.0,0.007]
[1724158917038,0.066976,60601.0,60600.0,0.072977]
[1724158917234,0.066976,60601.0,60600.0,0.12227955]
[1724158917740,0.066976,60601.0,60600.0,0.072977]
[1724158918142,0.001,60601.0,60600.0,0.072977]
[1724158918342,0.08147483,60620.0,60600.0,1.26284]
[1724158918531,0.0489,60616.0,60615.0,0.065961]
[1724158918834,0.065962,60614.0,60613.0,0.065962]
[1724158919034,0.0489,60616.0,60610.0,0.04928866]
[1724158919035,0.065964,60612.0,60610.0,0.04928866]
[1724158919242,0.065964,60612.0,60610.0,0.065965]
[1724158919441,0.065964,60612.0,60611.0,0.065965]
[1724158919742,0.065966,60611.0,60608.0,0.11525666]
[1724158919938,0.065966,60611.0,60609.0,0.11525566]
[1724158920238,0.065961,60615.0,60612.0,0.065964]
[1724158920545,0.065961,60615.0,60609.0,0.04928866]
[1724158920842,0.065961,60615.0,60614.0,0.065962]
[1724158922030,0.066961,60615.0,60614.0,0.074962]
[1724158923638,0.066961,60615.0,60614.0,0.073962]
[1724158924738,0.0489,60616.0,60615.0,0.065961]
[1724158924942,0.00024755,60617.0,60616.0,0.065959]
[1724158925143,3.8161,60624.0,60614.0,0.55185713]
[1724158925335,3.8161,60624.0,60623.0,0.426751]
[1724158925534,3.77,60624.0,60623.0,0.426751]
[1724158925734,0.0495,60629.0,60628.0,0.065946]
[1724158925934,0.0495,60629.0,60628.0,0.426746]
[1724158926133,3.8195,60629.0,60628.0,0.426746]
[1724158927444,0.00024755,60635.0,60634.0,0.06594]
[1724158927631,0.00024755,60635.0,60634.0,0.42674]
[1724158927833,3.77024755,60635.0,60634.0,0.42674]
[1724158928544,0.00024755,60635.0,60634.0,0.42674]
[1724158929331,0.00024755,60635.0,60634.0,1.3215]
[1724158929730,0.00024755,60635.0,60634.0,1.33139113]
[1724158930043,0.0474,60643.0,60642.0,0.065931]
[1724158930443,0.065924,60649.0,60647.0,0.065925]
[1724158930745,0.0973,60656.0,60655.0,0.065917]
[1724158930942,0.049,60656.0,60655.0,0.426717]
[1724158932138,0.053,60656.0,60655.0,0.426717]
[1724158933342,0.053,60656.0,60655.0,0.3608]
[1724158933543,0.053,60656.0,60649.0,0.00024732]
[1724158933544,0.065922,60650.0,60649.0,0.00024732]
[1724158934842,0.065922,60650.0,60649.0,0.00424732]
[1724158935351,3.835922,60650.0,60649.0,0.00424732]
[1724158936643,0.065935,60639.0,60631.0,0.3261]
[1724158936845,0.0461,60638.0,60637.0,0.065937]
[1724158937550,3.8161,60638.0,60637.0,0.065937]
[1724158938242,3.77,60638.0,60637.0,0.065937]
[1724158938748,3.771,60638.0,60637.0,0.077937]
[1724158940141,3.771,60638.0,60637.0,0.076937]
[1724158940941,3.771,60638.0,60637.0,0.074937]
[1724158941336,3.836935,60638.0,60637.0,0.074937]
[1724158943350,3.836935,60638.0,60637.0,0.009]
[1724158945349,3.836935,60638.0,60637.0,0.074937]
[1724158948555,3.84655978,60638.0,60637.0,0.074937]
[1724158949455,3.836935,60638.0,60637.0,0.074937]
[1724158951347,0.131884,60632.0,60631.0,0.00024732]
[1724158951547,0.558626,60632.0,60631.0,0.00024732]
[1724158951755,0.065952,60623.0,60622.0,0.04926083]
[1724158952052,0.065953,60622.0,60621.0,0.3608]
[1724158952647,0.158049,60626.0,60621.0,0.42015124]
[1724158952848,0.112449,60626.0,60623.0,0.04926083]
[1724158953245,0.112449,60626.0,60624.0,0.04926083]
[1724158953456,0.06619232,60630.0,60625.0,0.04926083]
[1724158954051,0.001,60626.0,60625.0,0.11521083]
[1724158954654,0.001,60626.0,60625.0,0.06595]
[1724158956051,0.065945,60629.0,60626.0,0.065948]
[1724158956245,0.00124732,60630.0,60626.0,0.11521797]
[1724158956455,0.065949,60626.0,60625.0,0.05626997]
[1724158957759,0.065949,60626.0,60625.0,0.007]
[1724158957958,0.06595,60625.0,60624.0,0.04926997]
[1724158958556,0.065951,60624.0,60623.0,0.065951]
[1724158958751,3.835951,60624.0,60623.0,0.065951]
[1724158960662,3.836951,60624.0,60623.0,0.072951]
[1724158960858,3.771,60624.0,60623.0,0.072951]
[1724158966964,0.001,60624.0,60623.0,0.072951]
[1724158967263,1e-08,60630.0,60629.0,0.065945]
[1724158967569,1e-08,60630.0,60629.0,0.45251293]
[1724158968465,1e-08,60630.0,60629.0,0.45251056]
[1724158969470,1e-08,60630.0,60629.0,0.52645556]
[1724158969471,0.00100001,60630.0,60629.0,0.52645556]
[1724158970664,0.00100001,60630.0,60629.0,1.1035114]
[1724158970969,0.00100001,60630.0,60629.0,1.14682028]
[1724158971262,0.065933,60641.0,60640.0,0.065933]
[1724158971765,3.835933,60641.0,60640.0,0.065933]
[1724158972863,3.836933,60641.0,60640.0,0.071933]
[1724158973464,3.835933,60641.0,60640.0,0.065933]
[1724158973771,3.836933,60641.0,60640.0,0.073933]
[1724158976272,3.835933,60641.0,60640.0,0.065933]
[1724158976569,3.836933,60641.0,60640.0,0.074933]
[1724158976769,3.836933,60641.0,60640.0,0.009]
[1724158977270,0.065936,60639.0,60638.0,0.065935]
[1724158978370,0.065939,60637.0,60636.0,0.065937]
[1724158979866,0.066939,60637.0,60636.0,0.074937]
[1724158980066,0.066939,60637.0,60636.0,0.009]
[1724158980267,0.132878,60637.0,60636.0,0.009]
[1724158984573,0.493678,60637.0,60636.0,0.009]
[1724158985473,0.778578,60637.0,60636.0,0.009]
[1724158989872,0.131878,60635.0,60634.0,0.00024732]
[1724158990076,0.197817,60635.0,60634.0,0.00024732]
[1724158990278,1.092577,60635.0,60634.0,0.00024732]
[1724158990576,1.092577,60635.0,60634.0,1e-08]
[1724158990577,4.908977,60635.0,60634.0,1e-08]
[1724158991777,4.508977,60635.0,60634.0,1e-08]
[1724158991984,4.509977,60635.0,60634.0,0.00100001]
[1724158992187,4.015217,60635.0,60634.0,0.00100001]
[1724158992480,4.509977,60635.0,60634.0,0.00100001]
[1724158992877,3.949278,60635.0,60634.0,0.00100001]
[1724158993177,0.001,60635.0,60634.0,0.06694001]
[1724158994485,0.427739,60635.0,60634.0,0.06694001]
[1724158995379,0.49343013,60635.0,60634.0,0.06694001]
[1724158996582,0.427739,60635.0,60634.0,0.06694001]
[1724158997278,0.427739,60635.0,60634.0,0.00100001]
[1724158998578,0.13188,60634.0,60633.0,0.00959741]
[1724158998786,0.13188,60634.0,60633.0,0.02576791]
[1724158998986,0.06594,60634.0,60627.0,0.13171857]
[1724158999184,0.0483,60633.0,60628.0,0.02576822]
[1724158999389,0.065942,60632.0,60629.0,0.02576822]
[1724158999586,0.1793331,60631.0,60630.0,0.02576822]
[1724158999779,0.2264331,60631.0,60630.0,0.02576822]
[1724159000979,0.160743,60631.0,60630.0,0.02576822]
[1724159002378,0.161743,60631.0,60630.0,0.02576822]
[1724159003890,0.06595,60625.0,60624.0,0.00024732]
[1724159004189,0.42675,60625.0,60624.0,0.00024732]
[1724159004377,0.42675,60625.0,60624.0,0.02601896]
[1724159004694,0.42675,60625.0,60624.0,0.00024732]
[1724159005185,0.42775,60625.0,60624.0,0.00024732]
[1724159005587,0.49346941,60625.0,60624.0,0.09197019]
[1724159007188,0.42775,60625.0,60624.0,0.09197019]
[1724159008291,0.42775,60625.0,60624.0,0.06619832]
[1724159008495,0.42775,60625.0,60624.0,0.09196923]
[1724159009582,0.3618,60625.0,60624.0,0.09196923]
[1724159009783,0.001,60625.0,60624.0,0.45276923]
[1724159009995,0.001,60625.0,60624.0,0.54431105]
[1724159010297,0.001,60625.0,60624.0,0.5185408]
[1724159010485,0.001,60625.0,60624.0,0.09196923]
[1724159011195,0.06695,60625.0,60624.0,0.02601823]
[1724159011398,0.1319,60625.0,60624.0,0.05178985]
[1724159011585,0.1329,60625.0,60624.0,0.05178985]
[1724159012288,0.1329,60625.0,60624.0,0.02601912]
[1724159012489,0.1329,60625.0,60624.0,0.05179092]
[1724159013698,0.1329,60625.0,60624.0,0.02601912]
[1724159014281,0.1329,60625.0,60624.0,0.00024732]
[1724159014282,1.09369,60625.0,60624.0,0.00024732]
[1724159014493,1.09269,60625.0,60624.0,0.00024732]
[1724159014887,1.19078397,60625.0,60624.0,0.00024732]
[1724159015193,1.09269,60625.0,60624.0,0.00024732]
[1724159015390,0.69269,60625.0,60624.0,0.00024732]
[1724159015897,0.69569,60625.0,60624.0,0.00024732]
[1724159017883,3.9019,60625.0,60624.0,0.00024732]
[1724159018088,3.9059,60625.0,60624.0,0.00024732]
[1724159018391,4.40074,60625.0,60624.0,0.00024732]
[1724159018592,4.48281609,60625.0,60624.0,0.00024732]
[1724159018899,4.47881609,60625.0,60624.0,0.00024732]
[1724159019088,4.48081609,60625.0,60624.0,0.00024732]
[1724159019490,3.98597609,60625.0,60624.0,0.00024732]
[1724159020198,3.83795,60625.0,60624.0,0.00024732]
[1724159020594,3.83595,60625.0,60624.0,0.06619832]
[1724159020786,3.83795,60625.0,60624.0,0.00024732]
[1724159020987,4.1888,60625.0,60624.0,0.00024732]
[1724159021599,4.1878,60625.0,60624.0,0.00024732]
[1724159022298,4.1868,60625.0,60624.0,0.00024732]
[1724159022597,4.1908,60625.0,60624.0,0.00024732]
[1724159024099,4.25675,60625.0,60624.0,0.00024732]
[1724159025494,4.1918,60625.0,60624.0,0.00024732]
[1724159027090,3.9069,60625.0,60624.0,0.00024732]
[1724159027495,4.1868,60625.0,60624.0,0.00024732]
[1724159027696,4.1918,60625.0,60624.0,0.00024732]
[1724159028303,4.1868,60625.0,60624.0,0.00024732]
[1724159031094,4.25275,60625.0,60624.0,0.00024732]
[1724159031298,4.1868,60625.0,60624.0,0.00024732]
[1724159031704,4.25275,60625.0,60624.0,0.00024732]
[1724159032110,4.1868,60625.0,60624.0,0.00024732]
[1724159032307,4.26887609,60625.0,60624.0,0.00024732]
[1724159032802,4.27187609,60625.0,60624.0,0.00024732]
[1724159033205,4.63267609,60625.0,60624.0,0.00024732]
[1724159034306,4.5506,60625.0,60624.0,0.00024732]
[1724159034505,4.28195769,60625.0,60624.0,0.00024732]
[1724159034699,4.31375,60625.0,60624.0,0.00024732]
[1724159034905,4.19675,60625.0,60624.0,0.00024732]
[1724159035113,4.31075,60625.0,60624.0,0.00024732]
[1724159035699,4.31075,60625.0,60624.0,0.06619832]
[1724159036404,4.19675,60625.0,60624.0,0.06619832]
[1724159037005,4.19675,60625.0,60624.0,0.09196978]
[1724159038008,0.06595,60625.0,60624.0,0.09196978]
[1724159038204,0.06578246,60625.0,60624.0,0.96103832]
[1724159038406,0.13172846,60629.0,60628.0,0.065946]
[1724159038608,3.90172846,60629.0,60628.0,0.065946]
[1724159038807,3.835946,60629.0,60628.0,0.09171428]
[1724159039218,3.77,60629.0,60628.0,0.065946]
[1724159039408,0.00024732,60631.0,60630.0,0.065944]
[1724159039919,0.00024732,60631.0,60630.0,0.09171172]
[1724159040618,0.00024732,60631.0,60630.0,0.091711]
[1724159040916,0.00024732,60631.0,60630.0,0.18333077]
[1724159041119,0.00024732,60631.0,60630.0,0.1833307]
[1724159041321,0.00124732,60631.0,60630.0,0.1833307]
[1724159041719,0.00124732,60631.0,60630.0,0.11747793]
[1724159042813,0.00124732,60631.0,60630.0,0.1272296]
[1724159043116,1e-08,60642.0,60631.0,0.065943]
[1724159043313,0.065929,60644.0,60640.0,0.065933]
[1724159043518,0.065929,60644.0,60638.0,0.3608]
[1724159043519,3.77,60641.0,60638.0,0.3608]
[1724159043818,0.065929,60644.0,60639.0,0.02576293]
[1724159044008,0.065929,60644.0,60638.0,0.3608]
[1724159044204,3.77,60643.0,60639.0,0.051526]
[1724159044410,3.77,60643.0,60642.0,0.065931]
[1724159045019,3.83593,60643.0,60642.0,0.065931]
[1724159045316,3.77,60643.0,60642.0,0.065931]
[1724159045614,3.83693,60643.0,60642.0,0.065931]
[1724159045820,3.771,60643.0,60638.0,0.426735]
[1724159046116,3.771,60643.0,60638.0,0.3608]
[1724159046117,0.065934,60639.0,60638.0,0.3608]
[1724159046418,0.6458,60639.0,60636.0,0.00024732]
[1724159046819,0.065937,60637.0,60636.0,0.00024732]
[1724159047016,0.131874,60637.0,60636.0,0.00024732]
[1724159047410,3.901874,60637.0,60636.0,0.00024732]
[1724159048920,3.903874,60637.0,60636.0,0.00024732]
[1724159049521,3.901874,60637.0,60636.0,0.00024732]
[1724159049922,3.835937,60637.0,60636.0,0.00024732]
[1724159051219,3.838937,60637.0,60636.0,0.00024732]
[1724159052008,3.835937,60637.0,60636.0,0.00024732]
[1724159052612,3.901874,60637.0,60636.0,0.00024732]
[1724159054630,3.901874,60637.0,60636.0,1e-08]
[1724159055322,4.862571,60637.0,60636.0,1e-08]
[1724159055627,0.065949,60626.0,60625.0,0.3261]
[1724159055824,0.065953,60622.0,60621.0,0.3608]
[1724159056318,3.835953,60622.0,60621.0,0.3608]
[1724159056725,0.065958,60617.0,60616.0,0.3608]
[1724159056923,0.06596,60616.0,60615.0,0.00024732]
[1724159060926,0.06696,60616.0,60615.0,0.00024732]
[1724159061528,0.06596,60616.0,60615.0,0.00024732]
[1724159061726,0.06696,60616.0,60615.0,0.00024732]
[1724159062527,0.06596,60616.0,60615.0,0.00024732]
[1724159067132,0.13192,60616.0,60615.0,0.00024732]
[1724159078150,0.18102,60616.0,60615.0,0.00024732]
[1724159083255,0.06596,60616.0,60615.0,0.00024732]
[1724159090961,0.06596,60616.0,60615.0,0.06620832]
[1724159091163,0.06596,60616.0,60615.0,0.13199407]
[1724159095560,0.06596,60616.0,60615.0,0.06603307]
[1724159096267,0.06596,60616.0,60615.0,0.00024732]
[1724159097272,0.13192,60616.0,60615.0,0.00024732]
[1724159098271,0.13192,60616.0,60615.0,0.02602213]
[1724159099266,0.13192,60616.0,60615.0,0.05179694]
[1724159099674,0.41692,60616.0,60615.0,0.05179694]
[1724159099866,0.84368,60616.0,60615.0,0.02602213]
[1724159100066,0.84368,60616.0,60615.0,0.00024732]
[1724159100478,4.61368,60616.0,60615.0,0.00024732]
[1724159102071,4.54772,60616.0,60615.0,0.00024732]
[1724159103467,3.83596,60616.0,60615.0,0.0517999]
[1724159106572,3.83596,60616.0,60615.0,0.02602321]
[1724159106775,3.83596,60616.0,60615.0,0.00024732]
[1724159107080,3.83596,60616.0,60615.0,0.11776002]
[1724159108379,4.18692,60616.0,60615.0,0.05179902]
[1724159108565,4.18692,60616.0,60596.0,0.065981]
[1724159108566,0.131934,60609.0,60596.0,0.065981]
[1724159108770,0.606748,60603.0,60602.0,0.00019833]
[1724159109178,4.376748,60603.0,60602.0,0.00019833]
[1724159110474,4.547948,60603.0,60602.0,0.00019833]
[1724159110672,4.548948,60603.0,60602.0,0.00019833]
[1724159112671,4.482974,60603.0,60602.0,0.00019833]
[1724159113983,4.197774,60603.0,60602.0,0.00019833]
[1724159116281,4.196774,60603.0,60602.0,0.06617333]
[1724159116477,0.3608,60603.0,60602.0,0.06617333]
[1724159119177,3.77,60607.0,60606.0,0.06597]
[1724159120582,0.3608,60608.0,60607.0,0.065969]
[1724159122887,0.3618,60608.0,60607.0,0.065969]
[1724159123690,0.427768,60608.0,60607.0,0.065969]
[1724159126787,0.426768,60608.0,60607.0,0.065969]
[1724159126988,0.427768,60608.0,60607.0,0.065969]
[1724159127387,0.001,60608.0,60607.0,0.11524318]
[1724159128587,0.066968,60608.0,60607.0,0.11524318]
[1724159129883,0.066968,60608.0,60607.0,0.065969]
[1724159130595,0.065968,60608.0,60607.0,0.065969]
[1724159130787,0.066968,60608.0,60607.0,0.065969]
[1724159131789,0.065971,60605.0,60604.0,0.065972]
[1724159131992,0.065971,60605.0,60604.0,0.11524618]
[1724159132191,0.065971,60605.0,60604.0,0.065972]
[1724159133190,0.065971,60605.0,60603.0,0.04927418]
[1724159133191,0.065973,60604.0,60603.0,0.04927418]
[1724159133585,0.162673,60604.0,60603.0,0.04927418]
[1724159136182,0.065974,60603.0,60602.0,0.37066716]
[1724159136496,0.001,60604.0,60603.0,0.065974]
[1724159136994,0.00024732,60609.0,60603.0,0.065974]
[1724159136995,0.06597,60606.0,60603.0,0.065974]
[1724159137296,0.06597,60606.0,60604.0,0.065972]
[1724159137487,0.065971,60605.0,60604.0,0.065972]
[1724159138484,0.00024732,60609.0,60602.0,0.37066716]
[1724159138684,0.06597,60606.0,60605.0,0.04938139]
[1724159138893,0.06597,60606.0,60604.0,0.04938139]
[1724159139197,0.131946,60604.0,60603.0,0.04938139]
[1724159139492,0.131946,60604.0,60602.0,0.36099833]
[1724159139493,0.065974,60603.0,60602.0,0.36099833]